[Event "Titled Tuesday Blitz February 22 Late 2022"]
[White "Ankerst, Mihael"]
[Black "Maksimovic, Bojan"]
[WhiteFideId "14602369"]
[BlackFideId "14408120"]
[WhiteElo "2327"]
[BlackElo "2450"]
[Result "0-1"]
[Round "01"]
[TimeControl "180+1"]
[Date "2022.02.23"]
[WhiteClock "0:00:17"]
[BlackClock "0:00:22"]

1. e4 {[%clk 0:03:00]}  a6 {[%clk 0:03:00]} 2. d4 {[%clk 0:03:00]}  b6 {[%clk 0:02:59]} 3. Bd3 {[%clk 0:03:01]}  Bb7 {[%clk 0:02:59]} 4. Qe2 {[%clk 0:03:00]}  e6 {[%clk 0:03:00]} 5. Nf3 {[%clk 0:03:00]}  Ne7 {[%clk 0:03:00]} 6. O-O {[%clk 0:03:00]}  g6 {[%clk 0:03:01]} 7. Nc3 {[%clk 0:02:57]}  Bg7 {[%clk 0:03:01]} 8. e5 {[%clk 0:02:58]}  d6 {[%clk 0:02:53]} 9. Ne4 {[%clk 0:02:57]}  h6 {[%clk 0:02:50]} 10. Re1 {[%clk 0:02:54]}  Nbc6 {[%clk 0:02:41]} 11. Bd2 {[%clk 0:02:51]}  dxe5 {[%clk 0:02:31]} 12. dxe5 {[%clk 0:02:51]}  Nxe5 {[%clk 0:02:31]} 13. Nxe5 {[%clk 0:02:46]}  Bxe5 {[%clk 0:02:32]} 14. Rad1 {[%clk 0:02:43]}  Nd5 {[%clk 0:02:13]} 15. c4 {[%clk 0:02:39]}  Nf4 {[%clk 0:02:13]} 16. Bxf4 {[%clk 0:02:38]}  Bxf4 {[%clk 0:02:14]} 17. Qf3 {[%clk 0:02:38]}  Be5 {[%clk 0:01:47]} 18. Nd6+ {[%clk 0:01:53]}  Bxd6 {[%clk 0:01:29]} 19. Qxb7 {[%clk 0:01:54]}  O-O {[%clk 0:01:29]} 20. Qf3 {[%clk 0:01:40]}  Kg7 {[%clk 0:01:28]} 21. g3 {[%clk 0:01:38]}  h5 {[%clk 0:01:23]} 22. h4 {[%clk 0:01:37]}  a5 {[%clk 0:01:23]} 23. Be4 {[%clk 0:01:34]}  Rb8 {[%clk 0:01:21]} 24. Bc6 {[%clk 0:01:34]}  Qf6 {[%clk 0:01:22]} 25. Qxf6+ {[%clk 0:01:34]}  Kxf6 {[%clk 0:01:23]} 26. f4 {[%clk 0:01:32]}  Rbd8 {[%clk 0:01:22]} 27. Kg2 {[%clk 0:01:32]}  Bc5 {[%clk 0:01:20]} 28. Kf3 {[%clk 0:01:32]}  Bd4 {[%clk 0:01:10]} 29. b3 {[%clk 0:01:31]}  Rd6 {[%clk 0:01:09]} 30. Be4 {[%clk 0:01:30]}  Rfd8 {[%clk 0:01:08]} 31. Re2 {[%clk 0:01:31]}  Bc5 {[%clk 0:01:04]} 32. Rxd6 {[%clk 0:01:29]}  Rxd6 {[%clk 0:01:05]} 33. Bc2 {[%clk 0:01:27]}  Rd4 {[%clk 0:01:01]} 34. Re4 {[%clk 0:01:24]}  Rd8 {[%clk 0:00:57]} 35. Re2 {[%clk 0:01:24]}  Ke7 {[%clk 0:00:53]} 36. Re1 {[%clk 0:01:23]}  Rd2 {[%clk 0:00:50]} 37. Re2 {[%clk 0:01:23]}  Rd8 {[%clk 0:00:33]} 38. Re1 {[%clk 0:01:24]}  f5 {[%clk 0:00:31]} 39. Rd1 {[%clk 0:01:21]}  Bd4 {[%clk 0:00:31]} 40. Re1 {[%clk 0:01:20]}  Kf6 {[%clk 0:00:31]} 41. a4 {[%clk 0:01:09]}  e5 {[%clk 0:00:18]} 42. fxe5+ {[%clk 0:01:09]}  Bxe5 {[%clk 0:00:19]} 43. Rd1 {[%clk 0:01:10]}  Bd6 {[%clk 0:00:19]} 44. Re1 {[%clk 0:01:09]}  Bb4 {[%clk 0:00:18]} 45. Re2 {[%clk 0:01:08]}  Rd4 {[%clk 0:00:17]} 46. Re3 {[%clk 0:01:07]}  Bd6 {[%clk 0:00:17]} 47. Rd3 {[%clk 0:00:58]}  Rg4 {[%clk 0:00:17]} 48. Kf2 {[%clk 0:00:58]}  f4 {[%clk 0:00:17]} 49. Rf3 {[%clk 0:00:57]}  Rxg3 {[%clk 0:00:16]} 50. Rxg3 {[%clk 0:00:47]}  fxg3+ {[%clk 0:00:17]} 51. Kg2 {[%clk 0:00:45]}  g5 {[%clk 0:00:17]} 52. hxg5+ {[%clk 0:00:44]}  Kxg5 {[%clk 0:00:18]} 53. Kf3 {[%clk 0:00:14]}  h4 {[%clk 0:00:18]} 54. Kg2 {[%clk 0:00:14]}  Kf4 {[%clk 0:00:18]} 55. Bd1 {[%clk 0:00:14]}  Ke3 {[%clk 0:00:18]} 56. Bg4 {[%clk 0:00:13]}  Kd2 {[%clk 0:00:19]} 57. Be6 {[%clk 0:00:14]}  Kc3 {[%clk 0:00:18]} 58. c5 {[%clk 0:00:14]}  Bxc5 {[%clk 0:00:18]} 59. Kf3 {[%clk 0:00:14]}  Bd6 {[%clk 0:00:18]} 60. Kg2 {[%clk 0:00:14]}  Kb4 {[%clk 0:00:16]} 61. Bc4 {[%clk 0:00:14]}  c6 {[%clk 0:00:17]} 62. Be6 {[%clk 0:00:13]}  b5 {[%clk 0:00:17]} 63. axb5 {[%clk 0:00:14]}  cxb5 {[%clk 0:00:18]} 64. Kh3 {[%clk 0:00:14]}  Be7 {[%clk 0:00:18]} 65. Bf7 {[%clk 0:00:12]}  a4 {[%clk 0:00:18]} 66. bxa4 {[%clk 0:00:13]}  bxa4 {[%clk 0:00:19]} 67. Be6 {[%clk 0:00:13]}  a3 {[%clk 0:00:20]} 68. Bf7 {[%clk 0:00:14]}  Kc3 {[%clk 0:00:21]} 69. Be6 {[%clk 0:00:15]}  Kb2 {[%clk 0:00:21]} 70. Bf7 {[%clk 0:00:16]}  a2 {[%clk 0:00:22]} 71. Be6 {[%clk 0:00:17]}  a1=Q {[%clk 0:00:22]} 72. Bg4 {[%clk 0:00:17]}  Qh1# {[%clk 0:00:22]} 0-1


[Site "https://www.chess.com"]

[Event "Titled Tuesday Blitz February 22 Late 2022"]
[White "Ansh M Shah"]
[Black "Garriga Cazorla, Pere"]
[WhiteFideId "25033379"]
[BlackFideId "32011601"]
[WhiteElo "1819"]
[BlackElo "2458"]
[Result "0-1"]
[Round "01"]
[TimeControl "180+1"]
[Date "2022.02.23"]
[WhiteClock "0:00:26"]
[BlackClock "0:01:42"]

1. d4 {[%clk 0:03:00]}  Nf6 {[%clk 0:02:58]} 2. c4 {[%clk 0:02:59]}  e6 {[%clk 0:02:58]} 3. Nc3 {[%clk 0:03:00]}  Bb4 {[%clk 0:02:58]} 4. Nf3 {[%clk 0:02:50]}  O-O {[%clk 0:02:58]} 5. g3 {[%clk 0:02:50]}  c5 {[%clk 0:02:53]} 6. Bg2 {[%clk 0:02:47]}  Ne4 {[%clk 0:02:53]} 7. Bd2 {[%clk 0:02:44]}  Nxd2 {[%clk 0:02:51]} 8. Qxd2 {[%clk 0:02:45]}  cxd4 {[%clk 0:02:51]} 9. Nxd4 {[%clk 0:02:30]}  Qc7 {[%clk 0:02:51]} 10. a3 {[%clk 0:02:05]}  Be7 {[%clk 0:02:49]} 11. b3 {[%clk 0:02:01]}  a6 {[%clk 0:02:47]} 12. O-O {[%clk 0:01:38]}  d6 {[%clk 0:02:47]} 13. Rac1 {[%clk 0:01:37]}  Nd7 {[%clk 0:02:48]} 14. Na4 {[%clk 0:01:19]}  Nf6 {[%clk 0:02:43]} 15. h3 {[%clk 0:01:17]}  Bd7 {[%clk 0:02:41]} 16. Nc3 {[%clk 0:01:16]}  Rac8 {[%clk 0:02:38]} 17. Rc2 {[%clk 0:01:14]}  Rfd8 {[%clk 0:02:37]} 18. g4 {[%clk 0:01:14]}  Qb8 {[%clk 0:02:38]} 19. Rfc1 {[%clk 0:01:13]}  h6 {[%clk 0:02:37]} 20. Ne4 {[%clk 0:01:09]}  Nxe4 {[%clk 0:02:32]} 21. Bxe4 {[%clk 0:01:10]}  Be8 {[%clk 0:02:32]} 22. Bg2 {[%clk 0:01:10]}  Rc5 {[%clk 0:02:31]} 23. b4 {[%clk 0:01:10]}  Rc7 {[%clk 0:02:31]} 24. Nb3 {[%clk 0:01:11]}  Rdc8 {[%clk 0:02:30]} 25. c5 {[%clk 0:01:10]}  d5 {[%clk 0:02:28]} 26. e4 {[%clk 0:01:09]}  Ba4 {[%clk 0:02:24]} 27. Rc3 {[%clk 0:01:07]}  dxe4 {[%clk 0:02:24]} 28. Bxe4 {[%clk 0:01:07]}  Bf6 {[%clk 0:02:24]} 29. Rf3 {[%clk 0:01:06]}  Rd8 {[%clk 0:02:23]} 30. Qe2 {[%clk 0:01:00]}  Rcd7 {[%clk 0:02:22]} 31. Na5 {[%clk 0:00:50]}  Bg5 {[%clk 0:02:17]} 32. c6 {[%clk 0:00:45]}  bxc6 {[%clk 0:02:07]} 33. Rxc6 {[%clk 0:00:43]}  Bb5 {[%clk 0:01:58]} 34. Qc2 {[%clk 0:00:39]}  Rd2 {[%clk 0:01:57]} 35. Qc5 {[%clk 0:00:36]}  Rd1+ {[%clk 0:01:43]} 36. Kg2 {[%clk 0:00:33]}  Bf1+ {[%clk 0:01:43]} 37. Kg1 {[%clk 0:00:26]}  Bxh3# {[%clk 0:01:42]} 0-1


[Site "https://www.chess.com"]

[Event "Titled Tuesday Blitz February 22 Late 2022"]
[White "Aradhya, Garg"]
[Black "Hoffmann, Asa"]
[WhiteFideId "25006746"]
[BlackFideId "2001470"]
[WhiteElo "2169"]
[BlackElo "2117"]
[Result "1-0"]
[Round "01"]
[TimeControl "180+1"]
[Date "2022.02.23"]
[WhiteClock "0:00:23"]
[BlackClock "0:00:27"]

1. d4 {[%clk 0:02:58]}  Nf6 {[%clk 0:02:55]} 2. c4 {[%clk 0:02:59]}  c5 {[%clk 0:02:55]} 3. d5 {[%clk 0:02:58]}  e5 {[%clk 0:02:53]} 4. Nc3 {[%clk 0:02:57]}  d6 {[%clk 0:02:53]} 5. e4 {[%clk 0:02:54]}  Be7 {[%clk 0:02:53]} 6. Bd3 {[%clk 0:02:53]}  Nbd7 {[%clk 0:02:53]} 7. Nge2 {[%clk 0:02:53]}  Nf8 {[%clk 0:02:52]} 8. Ng3 {[%clk 0:02:45]}  g6 {[%clk 0:02:50]} 9. h4 {[%clk 0:02:38]}  h5 {[%clk 0:02:49]} 10. Nf1 {[%clk 0:02:30]}  a6 {[%clk 0:02:46]} 11. a4 {[%clk 0:02:29]}  b6 {[%clk 0:02:46]} 12. Bg5 {[%clk 0:02:23]}  N6h7 {[%clk 0:02:43]} 13. Bxe7 {[%clk 0:02:23]}  Qxe7 {[%clk 0:02:43]} 14. Ne3 {[%clk 0:02:22]}  Bd7 {[%clk 0:02:39]} 15. a5 {[%clk 0:02:19]}  bxa5 {[%clk 0:02:35]} 16. Rxa5 {[%clk 0:02:19]}  Nf6 {[%clk 0:02:25]} 17. Bc2 {[%clk 0:02:14]}  N8h7 {[%clk 0:02:20]} 18. Qa1 {[%clk 0:02:12]}  O-O {[%clk 0:02:15]} 19. Rxa6 {[%clk 0:02:11]}  Rab8 {[%clk 0:02:10]} 20. g3 {[%clk 0:02:02]}  g5 {[%clk 0:02:08]} 21. b3 {[%clk 0:01:53]}  gxh4 {[%clk 0:02:04]} 22. Rxh4 {[%clk 0:01:52]}  Ng5 {[%clk 0:02:03]} 23. Qd1 {[%clk 0:01:50]}  Ng4 {[%clk 0:01:55]} 24. Qe2 {[%clk 0:01:32]}  Nxe3 {[%clk 0:01:47]} 25. Qxe3 {[%clk 0:01:31]}  Bg4 {[%clk 0:01:46]} 26. Bd1 {[%clk 0:01:31]}  Bxd1 {[%clk 0:01:39]} 27. Nxd1 {[%clk 0:01:29]}  Qf6 {[%clk 0:01:31]} 28. Rxh5 {[%clk 0:01:25]}  Nf3+ {[%clk 0:01:03]} 29. Kf1 {[%clk 0:01:19]}  Rxb3 {[%clk 0:00:59]} 30. Qe2 {[%clk 0:00:24]}  Nd4 {[%clk 0:00:33]} 31. Qg4+ {[%clk 0:00:22]}  Qg6 {[%clk 0:00:27]} 32. Rg5 {[%clk 0:00:23]} 1-0


[Site "https://www.chess.com"]

[Event "Titled Tuesday Blitz February 22 Late 2022"]
[White "Ardila, Oscar Humberto"]
[Black "Velikanov, Alexander"]
[WhiteFideId "4404742"]
[BlackFideId "2039290"]
[WhiteElo "1898"]
[BlackElo "2259"]
[Result "0-1"]
[Round "01"]
[TimeControl "180+1"]
[Date "2022.02.23"]
[WhiteClock "0:00:17"]
[BlackClock "0:00:06"]

1. d4 {[%clk 0:03:00]}  Nf6 {[%clk 0:02:59]} 2. c4 {[%clk 0:03:00]}  c5 {[%clk 0:02:59]} 3. d5 {[%clk 0:02:59]}  b5 {[%clk 0:02:59]} 4. Qc2 {[%clk 0:02:58]}  bxc4 {[%clk 0:02:58]} 5. Nc3 {[%clk 0:02:58]}  g6 {[%clk 0:02:58]} 6. e4 {[%clk 0:02:57]}  d6 {[%clk 0:02:59]} 7. Bxc4 {[%clk 0:02:56]}  Bg7 {[%clk 0:02:59]} 8. h3 {[%clk 0:02:56]}  O-O {[%clk 0:02:59]} 9. Nf3 {[%clk 0:02:56]}  Ba6 {[%clk 0:02:54]} 10. Bxa6 {[%clk 0:02:54]}  Nxa6 {[%clk 0:02:55]} 11. a3 {[%clk 0:02:54]}  Nd7 {[%clk 0:02:46]} 12. O-O {[%clk 0:02:52]}  Rb8 {[%clk 0:02:41]} 13. Bf4 {[%clk 0:02:47]}  Qb6 {[%clk 0:02:41]} 14. Rab1 {[%clk 0:02:45]}  Qb3 {[%clk 0:02:40]} 15. Qxb3 {[%clk 0:02:36]}  Rxb3 {[%clk 0:02:39]} 16. Nd2 {[%clk 0:02:37]}  Rfb8 {[%clk 0:02:24]} 17. Nxb3 {[%clk 0:02:33]}  Rxb3 {[%clk 0:02:25]} 18. Nd1 {[%clk 0:01:45]}  Nc7 {[%clk 0:01:46]} 19. Re1 {[%clk 0:01:43]}  f5 {[%clk 0:01:37]} 20. Bg5 {[%clk 0:01:32]}  Kf7 {[%clk 0:01:23]} 21. exf5 {[%clk 0:01:28]}  Nxd5 {[%clk 0:01:23]} 22. Ne3 {[%clk 0:01:28]}  N7b6 {[%clk 0:00:36]} 23. fxg6+ {[%clk 0:01:25]}  hxg6 {[%clk 0:00:31]} 24. Rbd1 {[%clk 0:01:18]}  Bd4 {[%clk 0:00:29]} 25. Nxd5 {[%clk 0:00:57]}  Nxd5 {[%clk 0:00:30]} 26. Re2 {[%clk 0:00:56]}  e5 {[%clk 0:00:27]} 27. Be3 {[%clk 0:00:54]}  Nxe3 {[%clk 0:00:19]} 28. fxe3 {[%clk 0:00:54]}  Bxe3+ {[%clk 0:00:20]} 29. Rxe3 {[%clk 0:00:43]}  Rxe3 {[%clk 0:00:19]} 30. Rxd6 {[%clk 0:00:44]}  Rb3 {[%clk 0:00:17]} 31. Rd7+ {[%clk 0:00:33]}  Ke6 {[%clk 0:00:17]} 32. Rxa7 {[%clk 0:00:33]}  Rxb2 {[%clk 0:00:17]} 33. Ra6+ {[%clk 0:00:31]}  Kf5 {[%clk 0:00:02]} 34. Rc6 {[%clk 0:00:31]}  Rc2 {[%clk 0:00:02]} 35. a4 {[%clk 0:00:31]}  c4 {[%clk 0:00:03]} 36. a5 {[%clk 0:00:31]}  c3 {[%clk 0:00:04]} 37. a6 {[%clk 0:00:31]}  g5 {[%clk 0:00:05]} 38. a7 {[%clk 0:00:30]}  Ra2 {[%clk 0:00:05]} 39. Rxc3 {[%clk 0:00:27]}  Rxa7 {[%clk 0:00:05]} 40. Kh2 {[%clk 0:00:27]}  e4 {[%clk 0:00:06]} 41. Rc5+ {[%clk 0:00:26]}  Kf4 {[%clk 0:00:06]} 42. g3+ {[%clk 0:00:19]}  Kf3 {[%clk 0:00:06]} 43. Rf5+ {[%clk 0:00:20]}  Ke3 {[%clk 0:00:06]} 44. Rxg5 {[%clk 0:00:20]}  Ra2+ {[%clk 0:00:07]} 45. Kg1 {[%clk 0:00:20]}  Kf3 {[%clk 0:00:08]} 46. h4 {[%clk 0:00:19]}  e3 {[%clk 0:00:08]} 47. h5 {[%clk 0:00:19]}  e2 {[%clk 0:00:06]} 48. Rf5+ {[%clk 0:00:17]}  Kxg3 {[%clk 0:00:06]} 49. Re5 {[%clk 0:00:17]}  Ra1# {[%clk 0:00:06]} 0-1


[Site "https://www.chess.com"]

[Event "Titled Tuesday Blitz February 22 Late 2022"]
[White "Avramidou, Anastasia"]
[Black "Kollars, Dmitrij"]
[WhiteFideId "4239873"]
[BlackFideId "12909572"]
[WhiteElo "2183"]
[BlackElo "2584"]
[Result "0-1"]
[Round "01"]
[TimeControl "180+1"]
[Date "2022.02.22"]
[WhiteClock "0:02:22"]
[BlackClock "0:02:17"]

1. Nf3 {[%clk 0:02:46]}  Nf6 {[%clk 0:02:59]} 2. d4 {[%clk 0:02:47]}  g6 {[%clk 0:02:58]} 3. c4 {[%clk 0:02:47]}  Bg7 {[%clk 0:02:58]} 4. Nc3 {[%clk 0:02:48]}  O-O {[%clk 0:02:59]} 5. e4 {[%clk 0:02:49]}  d6 {[%clk 0:02:59]} 6. Bd3 {[%clk 0:02:50]}  Bg4 {[%clk 0:02:58]} 7. O-O {[%clk 0:02:49]}  Nc6 {[%clk 0:02:58]} 8. Be3 {[%clk 0:02:48]}  Nd7 {[%clk 0:02:52]} 9. d5 {[%clk 0:02:48]}  Nd4 {[%clk 0:02:52]} 10. Be2 {[%clk 0:02:41]}  Nxe2+ {[%clk 0:02:52]} 11. Qxe2 {[%clk 0:02:41]}  Ne5 {[%clk 0:02:52]} 12. Bf4 {[%clk 0:02:38]}  Nxf3+ {[%clk 0:02:33]} 13. gxf3 {[%clk 0:02:39]}  Bh5 {[%clk 0:02:34]} 14. Bg3 {[%clk 0:02:37]}  f5 {[%clk 0:02:31]} 15. Qe3 {[%clk 0:02:35]}  Qd7 {[%clk 0:02:23]} 16. Rfe1 {[%clk 0:02:23]}  f4 {[%clk 0:02:17]} 17. Bxf4 {[%clk 0:02:22]}  Qh3 {[%clk 0:02:17]} 0-1


[Site "https://www.chess.com"]

[Event "Titled Tuesday Blitz February 22 Late 2022"]
[White "Batsiashvili, Nino"]
[Black "Kamsky, Gata"]
[WhiteFideId "13602993"]
[BlackFideId "2000024"]
[WhiteElo "2230"]
[BlackElo "2645"]
[Result "0-1"]
[Round "01"]
[TimeControl "180+1"]
[Date "2022.02.22"]
[WhiteClock "0:00:03"]
[BlackClock "0:00:12"]

1. d4 {[%clk 0:02:56]}  d5 {[%clk 0:02:57]} 2. c4 {[%clk 0:02:57]}  c6 {[%clk 0:02:57]} 3. Nf3 {[%clk 0:02:57]}  Nf6 {[%clk 0:02:55]} 4. g3 {[%clk 0:02:57]}  g6 {[%clk 0:02:54]} 5. Bg2 {[%clk 0:02:57]}  Bg7 {[%clk 0:02:53]} 6. O-O {[%clk 0:02:58]}  O-O {[%clk 0:02:53]} 7. Qb3 {[%clk 0:02:54]}  Qb6 {[%clk 0:02:52]} 8. Nc3 {[%clk 0:02:45]}  Rd8 {[%clk 0:02:50]} 9. c5 {[%clk 0:02:44]}  Qxb3 {[%clk 0:02:47]} 10. axb3 {[%clk 0:02:45]}  Na6 {[%clk 0:02:45]} 11. Ra4 {[%clk 0:02:39]}  Nc7 {[%clk 0:02:28]} 12. Bf4 {[%clk 0:02:31]}  Nfe8 {[%clk 0:02:20]} 13. b4 {[%clk 0:02:24]}  h6 {[%clk 0:02:08]} 14. Rfa1 {[%clk 0:02:23]}  a6 {[%clk 0:02:05]} 15. Ra5 {[%clk 0:02:17]}  g5 {[%clk 0:02:04]} 16. Bd2 {[%clk 0:02:13]}  Bf5 {[%clk 0:02:00]} 17. h4 {[%clk 0:02:02]}  g4 {[%clk 0:01:48]} 18. Ne1 {[%clk 0:01:55]}  Bxd4 {[%clk 0:01:46]} 19. Nc2 {[%clk 0:01:54]}  Bg7 {[%clk 0:01:44]} 20. Ne3 {[%clk 0:01:33]}  Be6 {[%clk 0:01:26]} 21. Nc2 {[%clk 0:01:20]}  d4 {[%clk 0:01:13]} 22. Ne4 {[%clk 0:01:19]}  f5 {[%clk 0:01:09]} 23. Ng5 {[%clk 0:01:12]}  hxg5 {[%clk 0:01:09]} 24. Bxg5 {[%clk 0:01:13]}  Kf7 {[%clk 0:01:05]} 25. Ne1 {[%clk 0:01:10]}  Bd5 {[%clk 0:01:04]} 26. Nd3 {[%clk 0:01:09]}  Bxg2 {[%clk 0:01:03]} 27. Kxg2 {[%clk 0:01:10]}  e5 {[%clk 0:01:01]} 28. Rf1 {[%clk 0:01:01]}  Rd5 {[%clk 0:00:56]} 29. f3 {[%clk 0:00:47]}  Kg6 {[%clk 0:00:53]} 30. fxg4 {[%clk 0:00:45]}  fxg4 {[%clk 0:00:52]} 31. Nf2 {[%clk 0:00:45]}  Ne6 {[%clk 0:00:50]} 32. Nxg4 {[%clk 0:00:31]}  Nxg5 {[%clk 0:00:49]} 33. hxg5 {[%clk 0:00:32]}  Kxg5 {[%clk 0:00:46]} 34. Nf2 {[%clk 0:00:32]}  Nf6 {[%clk 0:00:44]} 35. Ra3 {[%clk 0:00:28]}  Kg6 {[%clk 0:00:42]} 36. Rf3 {[%clk 0:00:27]}  e4 {[%clk 0:00:39]} 37. Rf4 {[%clk 0:00:26]}  Re8 {[%clk 0:00:38]} 38. Ng4 {[%clk 0:00:24]}  Re6 {[%clk 0:00:34]} 39. Nh2 {[%clk 0:00:20]}  d3 {[%clk 0:00:33]} 40. exd3 {[%clk 0:00:20]}  exd3 {[%clk 0:00:33]} 41. Nf3 {[%clk 0:00:20]}  Re2+ {[%clk 0:00:32]} 42. Kg1 {[%clk 0:00:17]}  d2 {[%clk 0:00:32]} 43. Rd1 {[%clk 0:00:17]}  Nh5 {[%clk 0:00:29]} 44. Rg4+ {[%clk 0:00:16]}  Kh6 {[%clk 0:00:27]} 45. Kf1 {[%clk 0:00:13]}  Re3 {[%clk 0:00:22]} 46. Nxd2 {[%clk 0:00:10]}  Red3 {[%clk 0:00:21]} 47. Ke2 {[%clk 0:00:11]}  Bxb2 {[%clk 0:00:19]} 48. Rh4 {[%clk 0:00:05]}  Bc3 {[%clk 0:00:18]} 49. Ne4 {[%clk 0:00:06]}  Rxd1 {[%clk 0:00:17]} 50. Nxc3 {[%clk 0:00:06]}  R1d2+ {[%clk 0:00:16]} 51. Ke1 {[%clk 0:00:07]}  Kg6 {[%clk 0:00:13]} 52. Ne4 {[%clk 0:00:07]}  R2d4 {[%clk 0:00:12]} 53. Rg4+ {[%clk 0:00:03]}  Kf5 {[%clk 0:00:12]} 54. Nd6+ {[%clk 0:00:03]}  Kxg4 {[%clk 0:00:12]} 0-1


[Site "https://www.chess.com"]

[Event "Titled Tuesday Blitz February 22 Late 2022"]
[White "Bettalli, Francesco"]
[Black "Pakleza, Zbigniew"]
[WhiteFideId "2816453"]
[BlackFideId "1119290"]
[WhiteElo "2216"]
[BlackElo "2467"]
[Result "0-1"]
[Round "01"]
[TimeControl "180+1"]
[Date "2022.02.23"]
[WhiteClock "0:00:05"]
[BlackClock "0:00:06"]

1. d4 {[%clk 0:02:58]}  d6 {[%clk 0:03:00]} 2. Nc3 {[%clk 0:02:58]}  Nf6 {[%clk 0:02:57]} 3. e4 {[%clk 0:02:55]}  c5 {[%clk 0:02:57]} 4. dxc5 {[%clk 0:02:45]}  dxc5 {[%clk 0:02:52]} 5. Qxd8+ {[%clk 0:02:46]}  Kxd8 {[%clk 0:02:53]} 6. Bg5 {[%clk 0:02:40]}  Nbd7 {[%clk 0:02:39]} 7. f3 {[%clk 0:02:35]}  a6 {[%clk 0:02:32]} 8. O-O-O {[%clk 0:02:35]}  Kc7 {[%clk 0:02:31]} 9. Bf4+ {[%clk 0:02:27]}  e5 {[%clk 0:02:25]} 10. Bg3 {[%clk 0:02:27]}  b5 {[%clk 0:02:19]} 11. a4 {[%clk 0:02:17]}  b4 {[%clk 0:02:15]} 12. Nd5+ {[%clk 0:02:14]}  Nxd5 {[%clk 0:02:14]} 13. Rxd5 {[%clk 0:02:15]}  Bb7 {[%clk 0:02:07]} 14. Rd1 {[%clk 0:02:11]}  f6 {[%clk 0:01:59]} 15. a5 {[%clk 0:02:07]}  Bd6 {[%clk 0:01:48]} 16. Bc4 {[%clk 0:02:05]}  Rad8 {[%clk 0:01:47]} 17. Ne2 {[%clk 0:02:00]}  Nb8 {[%clk 0:01:45]} 18. Bd5 {[%clk 0:01:55]}  Nc6 {[%clk 0:01:40]} 19. Bxc6 {[%clk 0:01:55]}  Bxc6 {[%clk 0:01:41]} 20. Rd2 {[%clk 0:01:50]}  Kc8 {[%clk 0:01:33]} 21. Rhd1 {[%clk 0:01:35]}  Bc7 {[%clk 0:01:30]} 22. Bf2 {[%clk 0:01:36]}  c4 {[%clk 0:01:21]} 23. Bc5 {[%clk 0:01:01]}  Bxa5 {[%clk 0:01:11]} 24. b3 {[%clk 0:01:01]}  Bb5 {[%clk 0:00:51]} 25. Ng3 {[%clk 0:00:47]}  Rxd2 {[%clk 0:00:39]} 26. Rxd2 {[%clk 0:00:42]}  c3 {[%clk 0:00:37]} 27. Rd6 {[%clk 0:00:37]}  Bc7 {[%clk 0:00:24]} 28. Rd5 {[%clk 0:00:32]}  a5 {[%clk 0:00:18]} 29. Bd6 {[%clk 0:00:25]}  Bc6 {[%clk 0:00:14]} 30. Rc5 {[%clk 0:00:25]}  Bxd6 {[%clk 0:00:13]} 31. Rxc6+ {[%clk 0:00:24]}  Kd7 {[%clk 0:00:14]} 32. Ra6 {[%clk 0:00:24]}  Bc7 {[%clk 0:00:15]} 33. Nf5 {[%clk 0:00:23]}  g6 {[%clk 0:00:09]} 34. Ne3 {[%clk 0:00:23]}  Rf8 {[%clk 0:00:09]} 35. Kd1 {[%clk 0:00:20]}  f5 {[%clk 0:00:09]} 36. exf5 {[%clk 0:00:19]}  gxf5 {[%clk 0:00:09]} 37. Ke2 {[%clk 0:00:19]}  e4 {[%clk 0:00:09]} 38. Nd5 {[%clk 0:00:11]}  Bxh2 {[%clk 0:00:08]} 39. Nf6+ {[%clk 0:00:11]}  Kc7 {[%clk 0:00:07]} 40. Nxh7 {[%clk 0:00:10]}  Rd8 {[%clk 0:00:07]} 41. fxe4 {[%clk 0:00:05]}  fxe4 {[%clk 0:00:06]} 0-1


[Site "https://www.chess.com"]

[Event "Titled Tuesday Blitz February 22 Late 2022"]
[White "Bluebaum, Matthias"]
[Black "Estrada Nieto, Julian"]
[WhiteFideId "24651516"]
[BlackFideId "5101018"]
[WhiteElo "2550"]
[BlackElo "2246"]
[Result "1-0"]
[Round "01"]
[TimeControl "180+1"]
[Date "2022.02.23"]
[WhiteClock "0:00:42"]
[BlackClock "0:00:03"]

1. d4 {[%clk 0:03:00]}  d5 {[%clk 0:02:59]} 2. Nf3 {[%clk 0:02:59]}  Nf6 {[%clk 0:02:59]} 3. e3 {[%clk 0:02:59]}  c5 {[%clk 0:02:59]} 4. dxc5 {[%clk 0:02:58]}  e6 {[%clk 0:02:52]} 5. b4 {[%clk 0:02:58]}  a5 {[%clk 0:02:51]} 6. c3 {[%clk 0:02:58]}  axb4 {[%clk 0:02:49]} 7. cxb4 {[%clk 0:02:58]}  b6 {[%clk 0:02:49]} 8. Bb5+ {[%clk 0:02:58]}  Bd7 {[%clk 0:02:47]} 9. Bxd7+ {[%clk 0:02:53]}  Qxd7 {[%clk 0:02:40]} 10. a4 {[%clk 0:02:41]}  bxc5 {[%clk 0:02:37]} 11. b5 {[%clk 0:02:41]}  Bd6 {[%clk 0:02:33]} 12. Bb2 {[%clk 0:02:41]}  O-O {[%clk 0:02:28]} 13. O-O {[%clk 0:02:39]}  Qc7 {[%clk 0:02:19]} 14. Bxf6 {[%clk 0:02:30]}  gxf6 {[%clk 0:02:18]} 15. e4 {[%clk 0:02:25]}  dxe4 {[%clk 0:02:13]} 16. Nfd2 {[%clk 0:02:25]}  Bxh2+ {[%clk 0:02:05]} 17. Kh1 {[%clk 0:02:26]}  Be5 {[%clk 0:02:02]} 18. Ra3 {[%clk 0:02:26]}  f5 {[%clk 0:02:01]} 19. Rh3 {[%clk 0:02:25]}  Nd7 {[%clk 0:01:56]} 20. Nc4 {[%clk 0:02:03]}  Nf6 {[%clk 0:01:44]} 21. b6 {[%clk 0:02:01]}  Qb8 {[%clk 0:01:42]} 22. a5 {[%clk 0:02:02]}  Rd8 {[%clk 0:01:31]} 23. Qc1 {[%clk 0:02:02]}  Rd4 {[%clk 0:01:27]} 24. Qg5+ {[%clk 0:01:58]}  Kf8 {[%clk 0:01:21]} 25. Nba3 {[%clk 0:01:57]}  Rd3 {[%clk 0:01:13]} 26. Rxd3 {[%clk 0:01:32]}  exd3 {[%clk 0:01:12]} 27. Qe3 {[%clk 0:01:33]}  Ng4 {[%clk 0:01:04]} 28. Qxc5+ {[%clk 0:01:05]}  Kg7 {[%clk 0:00:59]} 29. f3 {[%clk 0:00:52]}  Bg3 {[%clk 0:00:23]} 30. fxg4 {[%clk 0:00:50]}  fxg4 {[%clk 0:00:23]} 31. Qg5+ {[%clk 0:00:48]}  Kh8 {[%clk 0:00:23]} 32. Qf6+ {[%clk 0:00:48]}  Kg8 {[%clk 0:00:21]} 33. Qxf7+ {[%clk 0:00:49]}  Kh8 {[%clk 0:00:20]} 34. Qf6+ {[%clk 0:00:50]}  Kg8 {[%clk 0:00:20]} 35. Qxe6+ {[%clk 0:00:51]}  Kh8 {[%clk 0:00:20]} 36. Qxg4 {[%clk 0:00:49]}  Qg8 {[%clk 0:00:12]} 37. Qd4+ {[%clk 0:00:47]}  Qg7 {[%clk 0:00:10]} 38. Qxg7+ {[%clk 0:00:47]}  Kxg7 {[%clk 0:00:10]} 39. Rf3 {[%clk 0:00:42]}  Be1 {[%clk 0:00:07]} 40. Rxd3 {[%clk 0:00:42]}  Rf8 {[%clk 0:00:04]} 41. g3 {[%clk 0:00:41]}  Rf1+ {[%clk 0:00:03]} 42. Kg2 {[%clk 0:00:42]}  Rf2+ {[%clk 0:00:03]} 43. Kh3 {[%clk 0:00:42]}  Ra2 {[%clk 0:00:03]} 44. b7 {[%clk 0:00:42]} 1-0


[Site "https://www.chess.com"]